[Event "Open Cappelle-la-Grande"]
[Date "2025.02.15"]
[White "Midy, Robin"]
[Black "Prraneeth Vuppala"]
[WhiteElo "2140"]
[BlackElo "2442"]
[Round "1.1.15"]
[Result "1/2-1/2"]
[TimeControl "40/5400+30:1800+30"]

1. e4 {[%clk 1:29:30]} 1... c5 {[%clk 1:29:34]} 2. Nf3 {[%clk 1:29:52]} 2... d6
{[%clk 1:28:47]} 3. Bb5+ {[%clk 1:30:12]} 3... Bd7 {[%clk 1:27:14]} 4. Bxd7+
{[%clk 1:29:58]} 4... Nxd7 {[%clk 1:26:49]} 5. O-O {[%clk 1:29:53]} 5... e6
{[%clk 1:26:59]} 6. c3 {[%clk 1:29:42]} 6... Ngf6 {[%clk 1:25:13]} 7. Qe2 {[%clk
1:29:48]} 7... Be7 {[%clk 1:23:57]} 8. d4 {[%clk 1:29:31]} 8... O-O {[%clk
1:22:59]} 9. Rd1 {[%clk 1:28:49]} 9... d5 {[%clk 1:06:41]} 10. e5 {[%clk
1:21:40]} 10... Ne4 {[%clk 1:05:21]} 11. Nbd2 {[%clk 1:16:16]} 11... Nxd2 {[%clk
1:01:52]} 12. Bxd2 {[%clk 1:12:25]} 12... Rc8 {[%clk 1:01:04]} 13. Be3 {[%clk
1:02:22]} 13... cxd4 {[%clk 0:53:53]} 14. Rxd4 {[%clk 0:50:29]} 14... Qc7 {[%clk
0:49:11]} 15. Rg4 {[%clk 0:42:37]} 15... Nxe5 {[%clk 0:41:31]} 16. Bf4 {[%clk
0:37:56]} 16... Nxf3+ {[%clk 0:20:28]} 17. Qxf3 {[%clk 0:38:06]} 17... Bd6
{[%clk 0:19:29]} 18. Bh6 {[%clk 0:29:33]} 18... g6 {[%clk 0:19:53]} 19. Bxf8
{[%clk 0:28:04]} 19... Rxf8 {[%clk 0:20:18]} 20. h4 {[%clk 0:26:55]} 20... h5
{[%clk 0:18:53]} 21. Rd4 {[%clk 0:25:05]} 21... Bc5 {[%clk 0:19:19]} 22. Rd3
{[%clk 0:23:49]} 22... Rd8 {[%clk 0:19:22]} 23. Rad1 {[%clk 0:23:08]} 23... b5
{[%clk 0:19:29]} 24. g3 {[%clk 0:20:35]} 24... Kg7 {[%clk 0:19:30]} 25. Kg2
{[%clk 0:20:49]} 25... Rd6 {[%clk 0:19:01]} 26. R1d2 {[%clk 0:20:06]} 26... Rc6
{[%clk 0:18:06]} 27. Qe2 {[%clk 0:14:14]} 27... Be7 {[%clk 0:17:04]} 28. Rd4
{[%clk 0:13:41]} 28... Bc5 {[%clk 0:14:47]} 29. R4d3 {[%clk 0:13:21]} 29... a5
{[%clk 0:15:00]} 30. a3 {[%clk 0:06:59]} 30... Be7 {[%clk 0:14:48]} 31. Rd4
{[%clk 0:05:51]} 31... Bf6 {[%clk 0:15:05]} 32. Rf4 {[%clk 0:05:12]} 32... Be5
{[%clk 0:13:59]} 33. Rf3 {[%clk 0:05:25]} 33... Rc4 {[%clk 0:14:08]} 34. Rdd3
{[%clk 0:03:23]} 34... Bf6 {[%clk 0:13:29]} 35. Qd1 {[%clk 0:02:54]} 35... Qc6
{[%clk 0:07:53]} 36. Qd2 {[%clk 0:02:06]} 36... Rc5 {[%clk 0:04:03]} 37. Kh2
{[%clk 0:01:16]} 37... Qc7 {[%clk 0:02:28]} 38. Kg2 {[%clk 0:01:01]} 38... Be5
{[%clk 0:02:01]} 39. Qe2 {[%clk 0:00:49]} 39... Rc4 {[%clk 0:02:05]} 40. Rde3
{[%clk 0:00:46]} 40... Bf6 {[%clk 0:01:09]} 41. b3 {[%clk 0:17:15]} 41... Rc5
{[%clk 0:29:22]} 42. Qd2 {[%clk 0:15:03]} 42... a4 {[%clk 0:24:30]} 43. bxa4
{[%clk 0:04:01]} 43... bxa4 {[%clk 0:24:58]} 44. Rxf6 {[%clk 0:03:19]} 44...
Kxf6 {[%clk 0:24:39]} 45. Qd4+ {[%clk 0:03:07]} 45... Ke7 {[%clk 0:24:48]} 46.
Qxa4 {[%clk 0:03:17]} 46... Rc4 {[%clk 0:20:07]} 47. Qb3 {[%clk 0:02:38]} 47...
Kf8 {[%clk 0:17:50]} 48. Rf3 {[%clk 0:02:52]} 48... Kg7 {[%clk 0:18:08]} 49. Qd1
{[%clk 0:02:10]} 49... Qa7 {[%clk 0:15:12]} 50. Qc1 {[%clk 0:01:41]} 50... Qe7
{[%clk 0:12:07]} 51. Qb2 {[%clk 0:01:03]} 51... Qc7 {[%clk 0:09:13]} 52. Qd2
{[%clk 0:01:10]} 52... Qd6 {[%clk 0:09:02]} 53. Qb2 {[%clk 0:00:46]} 53... e5
{[%clk 0:07:58]} 54. Qb7 {[%clk 0:00:53]} 54... Rc7 {[%clk 0:08:19]} 55. Qb4
{[%clk 0:01:00]} 55... Qc6 {[%clk 0:08:45]} 56. a4 {[%clk 0:00:39]} 56... Rb7
{[%clk 0:07:35]} 57. Qa5 {[%clk 0:00:53]} 57... f6 {[%clk 0:03:36]} 58. Qd8
{[%clk 0:00:52]} 58... e4 {[%clk 0:00:51]} 59. Re3 {[%clk 0:00:39]} 59... Rd7
{[%clk 0:00:48]} 60. Qa5 {[%clk 0:00:51]} 60... Rb7 {[%clk 0:00:43]} 61. Qd8
{[%clk 0:01:14]} 61... Rd7 {[%clk 0:01:11]} 62. Qa5 {[%clk 0:01:33]} 62... Kf7
{[%clk 0:01:25]} 63. Qb4 {[%clk 0:01:16]} 63... f5 {[%clk 0:01:45]} 64. Re2
{[%clk 0:00:42]} 64... Rb7 {[%clk 0:00:43]} 65. Qd4 {[%clk 0:00:45]} 65... Qc4
{[%clk 0:00:57]} 66. Rd2 {[%clk 0:00:41]} 66... Qxd4 {[%clk 0:00:56]} 67. Rxd4
{[%clk 0:00:51]} 67... Rb2 {[%clk 0:00:39]} 68. Kf1 {[%clk 0:00:56]} 68... Ke6
{[%clk 0:00:46]} 69. c4 {[%clk 0:00:40]} 69... dxc4 {[%clk 0:01:15]} 70. Rxc4
{[%clk 0:01:02]} 70... Kd5 {[%clk 0:01:35]} 71. Rc8 {[%clk 0:00:54]} 71... e3
{[%clk 0:01:15]} 72. Rd8+ {[%clk 0:00:50]} 72... Ke5 {[%clk 0:01:11]} 73. Re8+
{[%clk 0:00:53]} 73... Kf6 {[%clk 0:01:39]} 74. fxe3 {[%clk 0:00:42]} 74... Ra2
{[%clk 0:02:05]} 75. Ra8 {[%clk 0:00:43]} 75... Ke5 {[%clk 0:02:33]} 76. Re8+
{[%clk 0:00:37]} 76... Kf6 {[%clk 0:02:59]} 77. Ra8 {[%clk 0:00:54]} 77... Ke5
{[%clk 0:03:27]} 78. Re8+ {[%clk 0:00:45]} 78... Kf6 {[%clk 0:03:49]} 1/2-1/2

[Variant "Standard"]
[Site "Europe Echecs"]

[Event "Open Cappelle-la-Grande"]
[Date "2025.02.15"]
[White "Duboue, Peio"]
[Black "Roger, Mehdi"]
[WhiteElo "2440"]
[BlackElo "2140"]
[Round "1.1.16"]
[Result "1/2-1/2"]
[TimeControl "40/5400+30:1800+30"]

1. e4 {[%clk 1:30:57]} 1... c5 {[%clk 1:30:55]} 2. c3 {[%clk 1:31:24]} 2... d5
{[%clk 1:31:14]} 3. exd5 {[%clk 1:31:50]} 3... Qxd5 {[%clk 1:31:40]} 4. d4
{[%clk 1:32:16]} 4... g6 {[%clk 1:31:54]} 5. Nf3 {[%clk 1:32:41]} 5... Bg7
{[%clk 1:32:20]} 6. Na3 {[%clk 1:32:52]} 6... cxd4 {[%clk 1:32:04]} 7. Nb5
{[%clk 1:32:49]} 7... Na6 {[%clk 1:31:55]} 8. Be3 {[%clk 1:33:12]} 8... Nf6
{[%clk 1:32:05]} 9. Bxd4 {[%clk 1:32:23]} 9... O-O {[%clk 1:31:35]} 10. Be2
{[%clk 1:32:50]} 10... Bg4 {[%clk 1:30:58]} 11. a4 {[%clk 1:32:08]} 11... Rad8
{[%clk 1:30:05]} 12. h3 {[%clk 1:28:23]} 12... e5 {[%clk 1:23:59]} 13. Be3
{[%clk 1:23:41]} 13... Qe6 {[%clk 1:21:16]} 14. Qc1 {[%clk 1:09:31]} 14... Bxf3
{[%clk 1:21:01]} 15. Bxf3 {[%clk 1:09:23]} 15... e4 {[%clk 1:21:20]} 16. Be2
{[%clk 1:09:06]} 16... Qe7 {[%clk 1:20:29]} 17. Bxa7 {[%clk 0:51:11]} 17... Nc5
{[%clk 1:17:11]} 18. Bxc5 {[%clk 0:44:49]} 18... Qxc5 {[%clk 1:17:36]} 19. O-O
{[%clk 0:45:10]} 19... Nd5 {[%clk 1:02:51]} 20. Qg5 {[%clk 0:41:19]} 20... f5
{[%clk 0:43:51]} 21. Rad1 {[%clk 0:38:02]} 21... Bf6 {[%clk 0:25:01]} 22. Qc1
{[%clk 0:36:32]} 22... Kh8 {[%clk 0:20:41]} 23. c4 {[%clk 0:29:31]} 23... Nb4
{[%clk 0:16:22]} 24. Rxd8 {[%clk 0:22:52]} 24... Rxd8 {[%clk 0:16:31]} 25. b3
{[%clk 0:22:15]} 25... Nd3 {[%clk 0:06:49]} 26. Bxd3 {[%clk 0:21:11]} 26... Rxd3
{[%clk 0:07:08]} 27. Rd1 {[%clk 0:10:44]} 27... Qb4 {[%clk 0:06:00]} 28. Rxd3
{[%clk 0:08:44]} 28... exd3 {[%clk 0:06:23]} 29. Qd1 {[%clk 0:09:08]} 29... d2
{[%clk 0:01:43]} 30. g3 {[%clk 0:04:35]} 30... Bd8 {[%clk 0:00:33]} 31. Qa1+
{[%clk 0:00:47]} 31... Kg8 {[%clk 0:00:56]} 1/2-1/2

[Variant "Standard"]
[Site "Europe Echecs"]

[Event "Open Cappelle-la-Grande"]
[Date "2025.02.15"]
[White "Naudion, Gregoire"]
[Black "Barp, Alberto"]
[WhiteElo "2136"]
[BlackElo "2437"]
[Round "1.1.17"]
[Result "1-0"]
[TimeControl "40/5400+30:1800+30"]

1. d4 {[%clk 1:30:55]} 1... Nf6 {[%clk 1:30:21]} 2. c4 {[%clk 1:31:15]} 2... e6
{[%clk 1:30:43]} 3. g3 {[%clk 1:31:38]} 3... d5 {[%clk 1:30:49]} 4. Bg2 {[%clk
1:31:22]} 4... Bb4+ {[%clk 1:29:45]} 5. Nd2 {[%clk 1:30:28]} 5... O-O {[%clk
1:30:02]} 6. Nf3 {[%clk 1:30:52]} 6... dxc4 {[%clk 1:28:09]} 7. Qc2 {[%clk
1:30:11]} 7... a5 {[%clk 1:27:24]} 8. a3 {[%clk 1:18:28]} 8... Bxd2+ {[%clk
1:24:37]} 9. Bxd2 {[%clk 1:18:51]} 9... b5 {[%clk 1:19:17]} 10. a4 {[%clk
1:04:38]} 10... c6 {[%clk 1:17:32]} 11. h4 {[%clk 0:48:20]} 11... Nbd7 {[%clk
0:57:38]} 12. h5 {[%clk 0:42:56]} 12... h6 {[%clk 0:54:00]} 13. g4 {[%clk
0:35:41]} 13... Nxg4 {[%clk 0:47:48]} 14. axb5 {[%clk 0:33:53]} 14... Bb7 {[%clk
0:39:01]} 15. bxc6 {[%clk 0:19:46]} 15... Bxc6 {[%clk 0:39:28]} 16. Ng5 {[%clk
0:20:05]} 16... hxg5 {[%clk 0:39:40]} 17. Bxc6 {[%clk 0:20:31]} 17... Rc8 {[%clk
0:39:22]} 18. Bf3 {[%clk 0:20:53]} 18... Nh6 {[%clk 0:38:42]} 19. Rg1 {[%clk
0:19:23]} 19... f6 {[%clk 0:37:10]} 20. Bxa5 {[%clk 0:17:38]} 20... Qe7 {[%clk
0:37:09]} 21. Bc3 {[%clk 0:16:38]} 21... Nb6 {[%clk 0:35:21]} 22. Qg6 {[%clk
0:07:19]} 22... Rcd8 {[%clk 0:12:48]} 23. Ra6 {[%clk 0:06:07]} 23... Rb8 {[%clk
0:09:27]} 24. d5 {[%clk 0:03:56]} 24... Nxd5 {[%clk 0:00:33]} 25. Be4 {[%clk
0:01:43]} 25... Nf5 {[%clk 0:01:01]} 26. Bxd5 {[%clk 0:01:48]} 26... Nh4 {[%clk
0:00:46]} 27. Rxe6 {[%clk 0:01:37]} 1-0

[Variant "Standard"]
[Site "Europe Echecs"]

[Event "Open Cappelle-la-Grande"]
[Date "2025.02.16"]
[White "Karthik Venkataraman"]
[Black "Johnson, Donald"]
[WhiteElo "2600"]
[BlackElo "2337"]
[Round "2.2.1"]
[Result "1-0"]
[TimeControl "40/5400+30:1800+30"]

1. e4 {[%clk 1:26:48]} 1... c5 {[%clk 1:30:45]} 2. Nf3 {[%clk 1:27:11]} 2... d6
{[%clk 1:31:11]} 3. d4 {[%clk 1:27:35]} 3... cxd4 {[%clk 1:31:38]} 4. Qxd4
{[%clk 1:28:00]} 4... Nf6 {[%clk 1:31:27]} 5. Nc3 {[%clk 1:28:23]} 5... Nc6
{[%clk 1:31:44]} 6. Qe3 {[%clk 1:28:47]} 6... g6 {[%clk 1:25:23]} 7. h3 {[%clk
1:28:54]} 7... Bg7 {[%clk 1:25:48]} 8. Bc4 {[%clk 1:29:20]} 8... O-O {[%clk
1:25:55]} 9. O-O {[%clk 1:29:44]} 9... b6 {[%clk 1:18:40]} 10. Rd1 {[%clk
1:29:51]} 10... Nd7 {[%clk 1:15:31]} 11. b3 {[%clk 1:29:42]} 11... Bb7 {[%clk
1:14:43]} 12. Bb2 {[%clk 1:30:05]} 12... Rc8 {[%clk 1:12:35]} 13. Rab1 {[%clk
1:29:07]} 13... Nde5 {[%clk 1:04:36]} 14. Nxe5 {[%clk 1:27:07]} 14... Nxe5
{[%clk 1:05:00]} 15. Be2 {[%clk 1:24:48]} 15... Qc7 {[%clk 0:42:34]} 16. Nb5
{[%clk 0:52:55]} 16... Qxc2 {[%clk 0:34:52]} 17. f3 {[%clk 0:52:44]} 17... Bh6
{[%clk 0:19:42]} 18. Qxh6 {[%clk 0:52:53]} 18... Qxe2 {[%clk 0:20:11]} 19. Nd4
{[%clk 0:53:15]} 19... Qa6 {[%clk 0:20:16]} 20. h4 {[%clk 0:52:17]} 20... b5
{[%clk 0:08:10]} 21. h5 {[%clk 0:45:22]} 21... d5 {[%clk 0:05:41]} 22. exd5
{[%clk 0:44:40]} 22... Qf6 {[%clk 0:02:17]} 23. Re1 {[%clk 0:38:57]} 23... Nd3
{[%clk 0:01:00]} 24. Ba1 {[%clk 0:39:22]} 24... g5 {[%clk 0:00:31]} 25. Nf5
{[%clk 0:39:40]} 25... Qxh6 {[%clk 0:00:31]} 26. Nxe7# {[%clk 0:40:01]} 1-0

[Variant "Standard"]
[Site "Europe Echecs"]

[Event "Open Cappelle-la-Grande"]
[Date "2025.02.16"]
[White "Meillon, Judicael"]
[Black "Pranesh M"]
[WhiteElo "2321"]
[BlackElo "2586"]
[Round "2.2.2"]
[Result "1/2-1/2"]
[TimeControl "40/5400+30:1800+30"]

1. d4 {[%clk 1:30:58]} 1... d5 {[%clk 1:26:47]} 2. Nf3 {[%clk 1:31:03]} 2... Nf6
{[%clk 1:27:03]} 3. Bf4 {[%clk 1:31:25]} 3... Bg4 {[%clk 1:27:04]} 4. e3 {[%clk
1:25:00]} 4... e6 {[%clk 1:27:08]} 5. h3 {[%clk 1:23:46]} 5... Bxf3 {[%clk
1:25:49]} 6. Qxf3 {[%clk 1:24:07]} 6... Bd6 {[%clk 1:25:50]} 7. Nd2 {[%clk
1:20:12]} 7... Qe7 {[%clk 1:19:29]} 8. Qg3 {[%clk 1:11:59]} 8... Bxf4 {[%clk
1:16:04]} 9. Qxf4 {[%clk 1:08:00]} 9... O-O {[%clk 1:13:33]} 10. Bd3 {[%clk
1:07:25]} 10... c5 {[%clk 1:07:15]} 11. c3 {[%clk 1:02:50]} 11... Nc6 {[%clk
1:04:27]} 12. Nf3 {[%clk 1:02:22]} 12... c4 {[%clk 1:03:20]} 13. Bc2 {[%clk
0:56:52]} 13... b5 {[%clk 1:00:35]} 14. a3 {[%clk 0:55:05]} 14... Ne8 {[%clk
0:52:46]} 15. Ne5 {[%clk 0:46:32]} 15... Nxe5 {[%clk 0:49:01]} 16. Qxe5 {[%clk
0:42:57]} 16... f6 {[%clk 0:45:37]} 17. Qg3 {[%clk 0:40:48]} 17... Nd6 {[%clk
0:39:41]} 18. O-O {[%clk 0:38:53]} 18... a5 {[%clk 0:38:09]} 19. Rfe1 {[%clk
0:36:15]} 19... b4 {[%clk 0:33:54]} 20. axb4 {[%clk 0:33:25]} 20... axb4 {[%clk
0:34:05]} 21. Rxa8 {[%clk 0:31:38]} 21... Rxa8 {[%clk 0:34:27]} 22. e4 {[%clk
0:32:06]} 22... b3 {[%clk 0:28:30]} 23. Bb1 {[%clk 0:32:01]} 23... dxe4 {[%clk
0:25:13]} 24. Bxe4 {[%clk 0:32:13]} 24... Ra5 {[%clk 0:25:26]} 25. Qf3 {[%clk
0:28:04]} 25... Qa7 {[%clk 0:22:34]} 26. Qf4 {[%clk 0:25:08]} 1/2-1/2

[Variant "Standard"]
[Site "Europe Echecs"]

[Event "Open Cappelle-la-Grande"]
[Date "2025.02.16"]
[White "Laurent-Paoli, Pierre"]
[Black "Ruzhansky, Elias"]
[WhiteElo "2565"]
[BlackElo "2333"]
[Round "2.2.3"]
[Result "1-0"]
[TimeControl "40/5400+30:1800+30"]

1. e4 {[%clk 1:20:37]} 1... c5 {[%clk 1:30:38]} 2. Nf3 {[%clk 1:20:56]} 2... d6
{[%clk 1:30:19]} 3. Bb5+ {[%clk 1:20:32]} 3... Bd7 {[%clk 1:30:26]} 4. c4 {[%clk
1:20:29]} 4... Nc6 {[%clk 1:30:26]} 5. Nc3 {[%clk 1:19:51]} 5... e5 {[%clk
1:30:21]} 6. d3 {[%clk 1:20:01]} 6... Nge7 {[%clk 1:29:58]} 7. h4 {[%clk
1:19:53]} 7... Ng8 {[%clk 1:29:27]} 8. a3 {[%clk 1:10:20]} 8... Nf6 {[%clk
1:18:45]} 9. Rb1 {[%clk 0:59:01]} 9... a6 {[%clk 1:15:39]} 10. Ba4 {[%clk
0:58:53]} 10... Be7 {[%clk 1:14:38]} 11. b4 {[%clk 0:58:05]} 11... b6 {[%clk
1:13:21]} 12. h5 {[%clk 0:46:56]} 12... h6 {[%clk 1:10:56]} 13. bxc5 {[%clk
0:44:54]} 13... bxc5 {[%clk 1:11:07]} 14. Nd5 {[%clk 0:43:57]} 14... Nxd5 {[%clk
1:09:06]} 15. cxd5 {[%clk 0:42:53]} 15... Na7 {[%clk 1:01:53]} 16. Bxd7+ {[%clk
0:42:09]} 16... Qxd7 {[%clk 1:02:05]} 17. O-O {[%clk 0:39:56]} 17... O-O {[%clk
0:54:09]} 18. Nd2 {[%clk 0:40:19]} 18... Nb5 {[%clk 0:49:54]} 19. Bb2 {[%clk
0:30:56]} 19... f5 {[%clk 0:47:12]} 20. a4 {[%clk 0:30:07]} 20... Nc7 {[%clk
0:30:38]} 21. Bc3 {[%clk 0:30:24]} 21... fxe4 {[%clk 0:26:05]} 22. dxe4 {[%clk
0:30:37]} 22... Rf4 {[%clk 0:26:14]} 23. g3 {[%clk 0:29:24]} 23... Rf7 {[%clk
0:13:50]} 24. Rb7 {[%clk 0:26:19]} 24... Raf8 {[%clk 0:11:59]} 25. Kg2 {[%clk
0:25:11]} 25... Qc8 {[%clk 0:10:47]} 26. Qb3 {[%clk 0:23:49]} 26... Kh8 {[%clk
0:08:06]} 27. f3 {[%clk 0:22:49]} 27... Ne8 {[%clk 0:03:18]} 28. Rb8 {[%clk
0:19:32]} 28... Qd7 {[%clk 0:03:43]} 29. Nc4 {[%clk 0:20:00]} 29... Bd8 {[%clk
0:01:45]} 30. Bxe5 {[%clk 0:16:25]} 30... Bc7 {[%clk 0:00:59]} 31. Rb7 {[%clk
0:16:45]} 31... dxe5 {[%clk 0:01:18]} 32. Nxe5 {[%clk 0:17:07]} 32... Qc8 {[%clk
0:00:43]} 33. Nxf7+ {[%clk 0:14:53]} 33... Rxf7 {[%clk 0:01:09]} 34. e5 {[%clk
0:13:58]} 34... Rf5 {[%clk 0:01:06]} 35. d6 {[%clk 0:13:00]} 35... Rxh5 {[%clk
0:00:57]} 36. g4 {[%clk 0:13:23]} 36... Rxe5 {[%clk 0:00:58]} 37. dxc7 {[%clk
0:13:04]} 37... c4 {[%clk 0:01:18]} 38. Qb6 {[%clk 0:11:50]} 38... Kh7 {[%clk
0:01:16]} 39. Qc6 {[%clk 0:10:17]} 39... Re7 {[%clk 0:00:50]} 40. Qxc4 {[%clk
0:08:55]} 40... Nxc7 {[%clk 0:01:05]} 41. Qc2+ {[%clk 0:08:41]} 41... Kh8 {[%clk
0:01:29]} 42. Rfb1 {[%clk 0:08:09]} 42... Qd7 {[%clk 0:30:08]} 43. Rb8+ {[%clk
0:31:38]} 43... Ne8 {[%clk 0:30:26]} 44. R1b7 {[%clk 0:30:24]} 44... Qe6 {[%clk
0:30:48]} 45. Rxe7 {[%clk 0:30:45]} 45... Qxe7 {[%clk 0:31:14]} 46. Qe4 {[%clk
0:30:52]} 1-0

[Variant "Standard"]
[Site "Europe Echecs"]

[Event "Open Cappelle-la-Grande"]
[Date "2025.02.16"]
[White "Iniyan, Pa"]
[Black "Lucas, Arthur"]
[WhiteElo "2523"]
[BlackElo "2320"]
[Round "2.2.4"]
[Result "1-0"]
[TimeControl "40/5400+30:1800+30"]

1. d4 {[%clk 1:30:27]} 1... f5 {[%clk 1:30:30]} 2. g3 {[%clk 1:29:40]} 2... Nf6
{[%clk 1:30:54]} 3. Bg2 {[%clk 1:30:04]} 3... g6 {[%clk 1:30:58]} 4. Nf3 {[%clk
1:30:00]} 4... Bg7 {[%clk 1:31:20]} 5. O-O {[%clk 1:30:20]} 5... O-O {[%clk
1:31:41]} 6. c4 {[%clk 1:30:47]} 6... d6 {[%clk 1:32:03]} 7. Nc3 {[%clk
1:31:12]} 7... Qe8 {[%clk 1:32:02]} 8. d5 {[%clk 1:07:55]} 8... Na6 {[%clk
1:32:14]} 9. Nd4 {[%clk 1:04:50]} 9... Nc5 {[%clk 1:31:19]} 10. Nb3 {[%clk
0:58:22]} 10... Bd7 {[%clk 0:49:26]} 11. Nxc5 {[%clk 0:53:49]} 11... dxc5 {[%clk
0:49:15]} 12. Bf4 {[%clk 0:53:47]} 12... c6 {[%clk 0:43:35]} 13. Be5 {[%clk
0:53:51]} 13... Rd8 {[%clk 0:37:29]} 14. Qa4 {[%clk 0:44:46]} 14... cxd5 {[%clk
0:34:29]} 15. Qxa7 {[%clk 0:45:09]} 15... d4 {[%clk 0:31:59]} 16. Nd5 {[%clk
0:45:26]} 16... Nxd5 {[%clk 0:28:42]} 17. Bxg7 {[%clk 0:45:50]} 17... Kxg7
{[%clk 0:26:41]} 18. cxd5 {[%clk 0:46:15]} 18... Rc8 {[%clk 0:23:45]} 19. Rfc1
{[%clk 0:46:34]} 19... b6 {[%clk 0:21:06]} 20. Qxb6 {[%clk 0:44:54]} 20... Qd8
{[%clk 0:18:01]} 21. Qxd8 {[%clk 0:38:08]} 21... Rfxd8 {[%clk 0:18:30]} 22. a4
{[%clk 0:37:20]} 22... c4 {[%clk 0:18:08]} 23. a5 {[%clk 0:36:58]} 23... Bb5
{[%clk 0:17:56]} 24. a6 {[%clk 0:36:47]} 24... Rd6 {[%clk 0:16:15]} 25. a7
{[%clk 0:37:11]} 25... Ra8 {[%clk 0:16:36]} 26. Rd1 {[%clk 0:19:58]} 26... c3
{[%clk 0:08:51]} 27. bxc3 {[%clk 0:20:00]} 27... dxc3 {[%clk 0:09:16]} 28. Rdc1
{[%clk 0:14:55]} 28... Rd7 {[%clk 0:09:09]} 29. Rxc3 {[%clk 0:15:15]} 29...
Raxa7 {[%clk 0:09:26]} 30. Rxa7 {[%clk 0:15:37]} 30... Rxa7 {[%clk 0:09:51]} 31.
Bf3 {[%clk 0:15:56]} 31... Be8 {[%clk 0:02:30]} 32. g4 {[%clk 0:09:57]} 32...
Kf6 {[%clk 0:00:46]} 33. gxf5 {[%clk 0:09:44]} 33... gxf5 {[%clk 0:01:07]} 34.
Kg2 {[%clk 0:10:10]} 34... Rd7 {[%clk 0:00:34]} 35. Kg3 {[%clk 0:09:22]} 35...
Bf7 {[%clk 0:00:37]} 36. Rc5 {[%clk 0:09:44]} 36... Rd6 {[%clk 0:00:32]} 37. Kf4
{[%clk 0:10:06]} 37... e5+ {[%clk 0:00:32]} 38. dxe6 {[%clk 0:10:27]} 38... Bxe6
{[%clk 0:00:59]} 39. Rc7 {[%clk 0:07:36]} 39... Bf7 {[%clk 0:00:32]} 40. e3
{[%clk 0:07:22]} 40... Rb6 {[%clk 0:00:40]} 41. Rd7 {[%clk 0:06:11]} 41... Rb4+
{[%clk 0:21:47]} 42. Rd4 {[%clk 0:35:11]} 42... Rb6 {[%clk 0:19:04]} 43. Rd7
{[%clk 0:33:28]} 43... Rb4+ {[%clk 0:19:23]} 44. Kg3 {[%clk 0:33:25]} 44... Rb6
{[%clk 0:15:26]} 45. Bd5 {[%clk 0:33:01]} 45... Bg6 {[%clk 0:11:15]} 46. Bg8
{[%clk 0:27:36]} 46... h6 {[%clk 0:11:14]} 47. Bh7 {[%clk 0:25:46]} 47... Bxh7
{[%clk 0:06:42]} 48. Rxh7 {[%clk 0:26:09]} 48... Kg6 {[%clk 0:06:54]} 49. Rd7
{[%clk 0:26:32]} 49... Re6 {[%clk 0:06:03]} 50. Rd4 {[%clk 0:26:35]} 50... Kg5
{[%clk 0:05:44]} 51. h4+ {[%clk 0:26:13]} 51... Kf6 {[%clk 0:05:11]} 52. Kf4
{[%clk 0:26:38]} 52... Rc6 {[%clk 0:05:24]} 53. h5 {[%clk 0:25:41]} 53... Rb6
{[%clk 0:04:58]} 54. f3 {[%clk 0:26:03]} 54... Ra6 {[%clk 0:05:06]} 55. Rb4
{[%clk 0:26:26]} 55... Rc6 {[%clk 0:05:05]} 56. Rb5 {[%clk 0:26:49]} 56... Rc4+
{[%clk 0:05:28]} 57. e4 {[%clk 0:27:15]} 57... fxe4 {[%clk 0:05:47]} 58. Rb6+
{[%clk 0:27:44]} 58... Kg7 {[%clk 0:04:01]} 59. fxe4 {[%clk 0:28:08]} 59... Rc1
{[%clk 0:02:28]} 60. Rg6+ {[%clk 0:28:29]} 60... Kh7 {[%clk 0:02:04]} 61. e5
{[%clk 0:28:53]} 61... Rf1+ {[%clk 0:00:54]} 62. Ke4 {[%clk 0:29:09]} 62... Rh1
{[%clk 0:00:53]} 63. e6 {[%clk 0:29:24]} 63... Rh4+ {[%clk 0:00:59]} 64. Kf5
{[%clk 0:29:47]} 64... Rxh5+ {[%clk 0:00:43]} 65. Kf6 {[%clk 0:30:11]} 65... Rg5
{[%clk 0:00:31]} 66. Rxg5 {[%clk 0:30:25]} 1-0

[Variant "Standard"]
[Site "Europe Echecs"]